Cogmind - Beta 16.1 @@@ ROGUE MODE // 2026.02.28 @ 17:03:55 Player: sckl Result: Self-destructed Performance ------------- Evolutions (3) 1500 Regions Visited (8) 1600 Robots Destroyed (98) 490 Value Destroyed (2125) 2125 Prototype IDs (30) 600 Alien Tech Used (0) 0 Bonus (300) 300 TOTAL SCORE: 6615 Bonus ------- Aligned with FarCom 300 Cogmind --------- Core Integrity 700/700 Matter 264/300 Energy 160/160 System Corruption 0% Temperature Cool (0) Movement Flying (127) Ox1 Location -7/Factory Parts ------- > --- POWER (1) -------- Light Nuclear Core (fused) > --- PROPULSION (5) --- Improved Flight Unit Flying Fortress v7 > --- UTILITY (4) ------ High-capacity Storage Unit Light Armor Plating Hardened Light Armor Plating Improved Light Armor Plating > --- WEAPON (3) ------- Autogun Improved Light Cannon Improved Light Cannon > --- INVENTORY (20) --- Light Nuclear Core Light Nuclear Core Light Nuclear Core Improved Treads Improved Flight Unit Improved Flight Unit Machine Analyzer Cloak of Protection Hacking Suite Hacking Suite Assault Rifle Autogun Mini Grenade Launcher Missile Launcher Longsword +1 Peak State ------------ > --- POWER ------------ Light Nuclear Core > --- PROPULSION ------- Improved Flight Unit Flying Fortress v7 > --- UTILITY ---------- High-capacity Storage Unit Light Armor Plating Hardened Light Armor Plating Improved Light Armor Plating > --- WEAPON ----------- Autogun Improved Light Cannon Improved Light Cannon > --- INVENTORY -------- Light Nuclear Core Light Nuclear Core Light Nuclear Core Improved Treads Improved Flight Unit Improved Flight Unit Machine Analyzer Cloak of Protection Hacking Suite Hacking Suite Assault Rifle Autogun Mini Grenade Launcher Missile Launcher Longsword +1 [Rating: 56] Favorites ----------- Power Light Nuclear Core Engine Ion Engine Power Core Light Nuclear Core Propulsion Improved Treads Treads Improved Treads Leg Aluminum Leg Flight Unit Flying Fortress v7 Utility Seismic Detector Device Seismic Detector Storage Large Storage Unit Protection Hardened Light Armor Plating Weapon Improved Light Cannon Ballistic Gun Light Assault Rifle Ballistic Cannon Improved Light Cannon Launcher Grenade Launcher Slashing Weapon Longsword +1 Build | -11 -10 -10 -9 -9 -9 -8 -8 -7 ------- Run | Yrd Mat Min Mat Min Exi Min Mat Fac Slots Evolved 6 | . . . 2 . . . 2 2 Power . | . . . . . . . . . Propulsion 3 | . . . 1 . . . 1 1 Utility 2 | . . . 1 . . . 1 . Weapon 1 | . . . . . . . . 1 Parts Attached 55 | 1 15 5 19 2 2 1 8 2 Power 8 | . 3 1 3 1 . . . . Engine 5 | . 3 . 2 . . . . . Core 3 | . . 1 1 1 . . . . Reactor . | . . . . . . . . . Propulsion 18 | . 8 . 7 . . . 1 2 Treads 10 | . 2 . 7 . . . 1 . Leg 6 | . 6 . . . . . . . Wheel . | . . . . . . . . . Hover . | . . . . . . . . . Flight 2 | . . . . . . . . 2 Utility 13 | 1 2 . 6 . 1 . 3 . Device 4 | 1 1 . 1 . . . 1 . Storage 2 | . 1 . . . 1 . . . Processor . | . . . . . . . . . Hackware . | . . . . . . . . . Protection 7 | . . . 5 . . . 2 . Artifact . | . . . . . . . . . Weapon 16 | . 2 4 3 1 1 1 4 . Energy Gun . | . . . . . . . . . Energy Cannon . | . . . . . . . . . Ballistic Gun 9 | . 2 2 2 1 . 1 1 . Ballistic Cannon 3 | . . . 1 . . . 2 . Launcher 3 | . . 2 . . . . 1 . Special Weapon . | . . . . . . . . . Impact Weapon . | . . . . . . . . . Slashing Weapon 1 | . . . . . 1 . . . Piercing Weapon . | . . . . . . . . . Special Melee Weapon . | . . . . . . . . . Unidentified Prototypes 1 | . . . 1 . . . . . Parts Lost 5 | . 2 . 3 . . . . . Power . | . . . . . . . . . Propulsion . | . . . . . . . . . Utility 3 | . . . 3 . . . . . Weapon 2 | . 2 . . . . . . . Highest Loss Streak 1 | . 1 . 1 . . . . . To Critical Strikes . | . . . . . . . . . Average Backups 13 | 4 8 14 14 15 13 15 16 15 Power 2 | 1 1 3 2 2 2 2 3 3 Propulsion 3 | 2 3 3 4 4 3 5 3 3 Utility 1 | . 1 3 1 1 1 1 3 4 Weapon 5 | 1 1 3 6 8 6 6 6 5 Tool/Special . | . . . . . . . . . Unused Backups 42 | 8 4 2 11 2 2 . 3 10 Power 11 | 1 1 1 4 . . . 1 3 Propulsion 10 | 4 . . 4 . . . . 2 Utility 10 | 1 1 1 1 . 1 . 1 4 Weapon 11 | 2 2 . 2 2 1 . 1 1 Tool/Special . | . . . . . . . . . Average Slot Usage (%) 96 | . 98 100 98 100 83 99 95 77 Engine 4 | . 14 . 5 . . . . . Core 7 | . . 13 5 11 11 11 9 7 Treads 25 | . 2 28 32 33 33 33 33 3 Leg 5 | . 25 . . . . . . . Device 9 | . 14 14 10 11 11 11 1 . Storage 11 | . 14 14 11 11 11 11 9 7 Protection 10 | . . . 11 11 11 11 22 23 Ballistic Gun 14 | . 26 26 13 11 . 11 7 7 Ballistic Cannon 5 | . . . 7 11 . 10 10 15 Peak Build Rating 56 | 7 8 13 22 21 28 24 30 56 Average Rating 18 | 6 7 10 17 20 23 23 28 54 On Entrance 16 | 6 7 8 11 21 16 28 24 30 Avg Prop Armor Cover (%) . | . . . . . . . . . Naked Turns . | . . . . . . . . . Heaviest Build 67 | 13 29 30 40 40 54 58 64 67 Greatest Support 92 | 20 40 40 69 69 69 69 92 55 Greatest Overweight (x) 1 | . 1 . . . . . . 1 Average Overweight (x) . | . . . . . . . . 1 Largest Inventory Capacity 20 | 8 15 15 15 15 20 20 20 20 Average Capacity 15 | 8 12 15 15 15 16 20 20 20 Most Carried 20 | 5 15 15 15 15 18 19 20 20 Average Carried 14 | 4 8 14 14 14 15 18 19 15 Final Capacity 20 | 8 15 15 15 15 20 20 20 20 Final Carried 20 | 5 10 15 15 15 18 19 20 15 Class Distribution -------------------- 98% | Mutant Dominant Class ---------------- Mutant | -10/Materials Mutant | -10/Mines Mutant | -9/Materials Mutant | -9/Mines Mutant | -9/Exiles Mutant | -8/Mines Mutant | -8/Materials Tank | -7/Factory Resources | -11 -10 -10 -9 -9 -9 -8 -8 -7 ----------- Run | Yrd Mat Min Mat Min Exi Min Mat Fac Matter Collected 2183 | 218 426 125 709 222 . 43 440 . Remotely . | . . . . . . . . . Salvage Created 2844 | 190 826 84 1327 169 . . 248 . Parts 206 | 12 53 11 92 16 . . 22 . Haulers Intercepted 4 | . . . 3 . . . 1 . Recyclers Shooed 6 | . 3 1 2 . . . . . Parts Field Recycled . | . . . . . . . . . Retrieved Matter . | . . . . . . . . . Parts Self-Destructed . | . . . . . . . . . Prevented . | . . . . . . . . . Parts Restored . | . . . . . . . . . Kills | -11 -10 -10 -9 -9 -9 -8 -8 -7 ------- Run | Yrd Mat Min Mat Min Exi Min Mat Fac Combat Hostiles Destroyed 61 | . 15 7 29 6 . . 4 . Guns 45 | . 15 5 19 5 . . 1 . Cannons 14 | . . . 10 1 . . 3 . AOE 2 | . . 2 . . . . . . Classes Destroyed 11 | 2 4 . 3 . . . 2 . Worker 9 | . . . 4 3 . . 2 . Builder 1 | . . . . . . . 1 . Tunneler 5 | 4 . . 1 . . . . . Hauler 4 | . . . 3 . . . 1 . Recycler 5 | 1 3 . 1 . . . . . Operator 4 | . 2 . 1 . . . 1 . Watcher 9 | . 3 . 5 . . . 1 . Swarmer 19 | . 3 6 6 4 . . . . Grunt 34 | . 12 1 17 2 . . 2 . Brawler 1 | . . . . . . . 1 . Sentry 7 | . . . 6 . . . 1 . Best Kill Streak 6 | 3 3 6 5 4 . . 2 . Combat Bots Only 6 | . 3 6 4 4 . . 2 . Max Kills in Single Turn 2 | 1 1 1 2 1 . . 1 . Gunslinging . | . . . . . . . . . Exploded 1 | . . 1 . . . . . . Melee . | . . . . . . . . . Uniques/NPCs Destroyed . | . . . . . . . . . Combat | -11 -10 -10 -9 -9 -9 -8 -8 -7 -------- Run | Yrd Mat Min Mat Min Exi Min Mat Fac Hostile Shots Fired 252 | . 82 23 112 18 . . 17 . Missed 58 | . 24 4 23 4 . . 3 . Hits 194 | . 58 19 89 14 . . 14 . Melee 1 | . . . . . . . 1 . Projectile 193 | . 58 19 89 14 . . 13 . Critical Strikes 9 | . 4 . 2 . . . 3 . Damage Taken 2361 | . 714 161 1147 115 . . 224 . Core 346 | . 153 21 124 33 . . 15 . Absorbed by Shields . | . . . . . . . . . Redirected to Shielding 48 | . . . 48 . . . . . Regen/Repaired (Parts) 418 | . . . 387 . . . 31 . Core Remaining (%) 71 | 100 . 30 . . . 60 97 . Volleys Fired 268 | 12 106 17 97 8 . . 28 . Largest 2 | 2 2 2 2 2 . . 2 . Hottest 66 | 40 40 40 56 56 . . 66 . Shots Fired 526 | 24 203 29 194 20 . . 56 . Gun 427 | 24 203 25 141 10 . . 24 . Cannon 95 | . . . 53 10 . . 32 . Launcher 4 | . . 4 . . . . . . Special . | . . . . . . . . . Kinetic 522 | 24 203 25 194 20 . . 56 . Thermal . | . . . . . . . . . Explosive 4 | . . 4 . . . . . . Electromagnetic . | . . . . . . . . . Robot Hit Streak 16 | 8 10 3 16 7 . . 6 . Robot Miss Streak 9 | 1 9 4 3 2 . . 3 . Penetration Max . | . . . . . . . . . Secondary Targets 3 | . 2 1 . . . . . . Max Gunslinging Chain 1 | . 1 1 . . . . . . Shots Hit Robots 323 | 16 116 11 138 10 . . 32 . Core Hits 159 | 9 54 12 62 7 . . 15 . Critical Kills 2 | . . . 1 . . . 1 . Critical Parts Destroyed 2 | . . . 2 . . . . . Critical Strikes 4 | . . . 3 . . . 1 . Destroy 4 | . . . 3 . . . 1 . Melee Attacks . | . . . . . . . . . Impact . | . . . . . . . . . Slashing . | . . . . . . . . . Piercing . | . . . . . . . . . Sneak Attacks . | . . . . . . . . . Combat Hostiles . | . . . . . . . . . Follow-up Attacks . | . . . . . . . . . Damage Inflicted 4617 | 128 1102 255 2237 214 . . 681 . Guns 3049 | 128 1052 137 1421 124 . . 187 . Cannons 1234 | . . . 763 74 . . 397 . Explosions 109 | . . 109 . . . . . . Melee . | . . . . . . . . . Ramming 225 | . 50 9 53 16 . . 97 . Kinetic 4283 | 128 1052 137 2184 198 . . 584 . Thermal . | . . . . . . . . . Explosive 109 | . . 109 . . . . . . Electromagnetic . | . . . . . . . . . Impact . | . . . . . . . . . Slashing . | . . . . . . . . . Piercing . | . . . . . . . . . Highest Corruption 3 | . . . 3 3 3 3 3 . Average Corruption 2 | . . . 2 3 3 3 2 . Corruption Purged . | . . . . . . . . . Corruption Blocked . | . . . . . . . . . Effects 57 | . . . 10 12 10 6 19 . Message Errors 11 | . . . 3 2 4 . 2 . Matter Fused 11 | . . . 1 1 3 1 5 . Heat Flow Errors 11 | . . . . 4 1 . 6 . Energy Discharges 8 | . . . 1 . 2 2 3 . Parts Rejected 1 | . . . 1 . . . . . Parts Fused 1 | . . . . . . . 1 . Data Loss (minor) 8 | . . . 3 1 . 2 2 . Data Loss (major) 1 | . . . 1 . . . . . Misfires 4 | . . . . 4 . . . . Alerts 1 | . . . . . . 1 . . Overload Shots . | . . . . . . . . . Overflow Damage 13 | . . . . 4 . . 9 . Projectiles 13 | . . . . 4 . . 9 . Explosions . | . . . . . . . . . Melee . | . . . . . . . . . Knockbacks 15 | . . . 7 2 . . 6 . Impact 2 | . . . 1 . . . 1 . Kinetic 12 | . . . 6 2 . . 4 . Secondary 1 | . . . . . . . 1 . Self-Inflicted Damage . | . . . . . . . . . Shots . | . . . . . . . . . Rammed 19 | . 2 1 7 3 . . 6 . Targets Rammed 32 | . 9 1 8 6 . . 8 . Kicked 7 | . 7 . . . . . . . Crushed 6 | . . . 1 3 . . 2 . Highest Temperature 275 | . 50 8 29 275 226 . 231 . Average Temperature 46 | . 15 3 6 78 120 . 64 . Received Heat Transfer 1005 | . 450 6 399 6 . . 144 . Effects 1 | . . . . . . . 1 . Energy Bleed 1 | . . . . . . . 1 . Siege Activations . | . . . . . . . . . Martial Activations . | . . . . . . . . . Shielding Activations . | . . . . . . . . . Robots Disrupted . | . . . . . . . . . Combat Hostiles . | . . . . . . . . . Robots Corrupted . | . . . . . . . . . Combat Hostiles . | . . . . . . . . . Parts Fried . | . . . . . . . . . Impact Corruptions . | . . . . . . . . . Robots Melted . | . . . . . . . . . Combat Hostiles . | . . . . . . . . . Parts Melted . | . . . . . . . . . Heat Transferred . | . . . . . . . . . Parts Sabotaged . | . . . . . . . . . Parts Stolen . | . . . . . . . . . Parts Stripped . | . . . . . . . . . Power Chain Reactions . | . . . . . . . . . Alert | -11 -10 -10 -9 -9 -9 -8 -8 -7 ------- Run | Yrd Mat Min Mat Min Exi Min Mat Fac Maximum Alert Level 1 | . . . 1 . . . . . Low Security (%) 87 | 100 100 100 57 100 . 100 100 100 Level 1 12 | . . . 42 . . . . . Level 2 . | . . . . . . . . . Level 3 . | . . . . . . . . . Level 4 . | . . . . . . . . . Level 5 . | . . . . . . . . . High Security . | . . . . . . . . . Max Security . | . . . . . . . . . Peak Influence 285 | 15 139 149 285 111 . . 52 7 Initial 45 | . 3 . 45 23 . . . 7 Average 58 | 3 34 22 151 23 . . 6 1 Influence Increases 1942 | 25 458 195 911 156 . . 197 . Destroy 0b10 Robot/C 1220 | . 300 140 580 120 . . 80 . Destroy 0b10 Robot/NC 185 | 25 40 . 75 15 . . 30 . Destroy Leader 296 | . 76 20 156 20 . . 24 . Successful Hack 91 | . 27 . 33 . . . 31 . Select Force Hacks 60 | . . . 30 . . . 30 . Disable Machine 30 | . . 15 15 . . . . . Destroy Structure 30 | . . 20 7 1 . . 2 . Lose Combat Pursuer 30 | . 15 . 15 . . . . . Influence Decreases 1942 | 20 460 81 967 217 . . 179 18 Entered New Map 126 | . 2 3 72 38 . . . 11 Time Decay 1468 | 20 419 78 586 179 . . 179 7 Lost Part 50 | . 20 . 30 . . . . . Purge Threat 298 | . 19 . 279 . . . . . Squads Dispatched 17 | . 3 1 7 . . . 6 . Investigation 10 | . 2 1 5 . . . 2 . Extermination . | . . . . . . . . . Reinforcement 7 | . 1 . 2 . . . 4 . Assault . | . . . . . . . . . Garrison . | . . . . . . . . . Intercept . | . . . . . . . . . Searches Triggered . | . . . . . . . . . Construction Impeded . | . . . . . . . . . Haulers Reinforced . | . . . . . . . . . Active Scanning Responses . | . . . . . . . . . Cargo Convoy Interrupts . | . . . . . . . . . Stealth | -11 -10 -10 -9 -9 -9 -8 -8 -7 --------- Run | Yrd Mat Min Mat Min Exi Min Mat Fac Distress Signals 8 | . 3 . 2 . . . 3 . Communications Jammed . | . . . . . . . . . Distress Signals . | . . . . . . . . . Times Spotted 95 | . 34 6 38 6 . . 11 . Peak Tracking Total 4 | . 4 3 3 4 . . 3 . Tactical Retreats 2 | . 1 . 1 . . . . . Traps | -11 -10 -10 -9 -9 -9 -8 -8 -7 ------- Run | Yrd Mat Min Mat Min Exi Min Mat Fac Traps Triggered 7 | . . . 4 . . . 3 . Indirectly . | . . . . . . . . . Trap Hack Attempts . | . . . . . . . . . Triggered . | . . . . . . . . . Disarmed . | . . . . . . . . . Reprogrammed . | . . . . . . . . . Reused . | . . . . . . . . . Traps Extracted . | . . . . . . . . . Installed . | . . . . . . . . . Triggered . | . . . . . . . . . Machines | -11 -10 -10 -9 -9 -9 -8 -8 -7 ---------- Run | Yrd Mat Min Mat Min Exi Min Mat Fac Machines Disabled 2 | . . 1 1 . . . . . Max in Single Turn 1 | . . 1 1 . . . . . Machines Repaired . | . . . . . . . . . Machines Dismantled . | . . . . . . . . . Machines Sabotaged . | . . . . . . . . . Overloaded Fab Kills . | . . . . . . . . . Hacking | -11 -10 -10 -9 -9 -9 -8 -8 -7 --------- Run | Yrd Mat Min Mat Min Exi Min Mat Fac Machines Accessed 38 | . 8 1 13 . 5 . 10 1 Terminals 23 | . 7 . 9 . . . 6 1 Fabricators . | . . . . . . . . . Repair Stations 3 | . . . 1 . . . 2 . Recycling Units 3 | . 1 . 1 . . . 1 . Scanalyzers 2 | . . . 2 . . . . . Garrison Access 1 | . . . . . . . 1 . Total Hacks 144 | . 22 1 57 . 30 . 30 4 Successful 90 | . 12 1 31 . 30 . 16 . Failed 54 | . 10 . 26 . . . 14 4 Catastrophic 11 | . 3 . 2 . . . 6 . Database Lockouts . | . . . . . . . . . Manual 78 | . 16 . 35 . 1 . 22 4 Terminals 82 | . 20 . 36 . . . 22 4 Fabricators . | . . . . . . . . . Repair Stations 13 | . . . 9 . . . 4 . Recycling Units 6 | . 2 . 2 . . . 2 . Scanalyzers 10 | . . . 10 . . . . . Garrison Access 2 | . . . . . . . 2 . Terminal Hacks 48 | . 4 1 8 . 30 . 5 . Record 31 | . . . . . 29 . 2 . Robot Analysis 4 | . . . 3 . . . 1 . Prototype ID Bank 3 | . 1 . 2 . . . . . Open Door 1 | . . 1 . . . . . . Terminal Index 1 | . 1 . . . . . . . Unreport Threat 3 | . 1 . 2 . . . . . Recall Reinforcements 1 | . . . . . . . 1 . Hauler Manifests 3 | . 1 . 1 . . . 1 . Proto ID Catalog 1 | . . . . . 1 . . . Fabricator Hacks . | . . . . . . . . . Repair Station Hacks 12 | . . . 8 . . . 4 . Scan Component 6 | . . . 4 . . . 2 . Repair 6 | . . . 4 . . . 2 . Recycling Unit Hacks 4 | . 2 . 1 . . . 1 . Report Inventory 3 | . 1 . 1 . . . 1 . Retrieve Components 1 | . 1 . . . . . . . Scanalyzer 7 | . . . 7 . . . . . Insert Component 2 | . . . 2 . . . . . Analyze 1 | . . . 1 . . . . . Retrieve Study 4 | . . . 4 . . . . . Garrison Access Hacks . | . . . . . . . . . Unauthorized Hacks 19 | . 6 . 7 . . . 6 . Terminals 17 | . 6 . 6 . . . 5 . Assimilate 1 | . 1 . . . . . . . Botnet 16 | . 5 . 6 . . . 5 . Fabricators . | . . . . . . . . . Repair Stations . | . . . . . . . . . Recycling Units 2 | . . . 1 . . . 1 . Tunnel 2 | . . . 1 . . . 1 . Scanalyzers . | . . . . . . . . . Garrison Access . | . . . . . . . . . Data Cores Recovered . | . . . . . . . . . Used . | . . . . . . . . . Hacking Detections 27 | . 7 . 12 . . . 7 1 Full Trace Events 6 | . 2 . 3 . . . 1 . Feedback Events . | . . . . . . . . . Feedback Blocked . | . . . . . . . . . Robot Schematics Acquired . | . . . . . . . . . Robots Built . | . . . . . . . . . Authchips . | . . . . . . . . . Time . | . . . . . . . . . Total Robot Build Rating . | . . . . . . . . . Part Schematics Acquired 1 | . . . 1 . . . . . Parts Built . | . . . . . . . . . Authchips . | . . . . . . . . . Time . | . . . . . . . . . Total Part Build Rating . | . . . . . . . . . Part Studies Acquired 4 | . . . 4 . . . . . Parts Repaired 6 | . . . 4 . . . 2 . Time 199 | . . . 135 . . . 64 . Parts Recycled . | . . . . . . . . . Recycled Matter . | . . . . . . . . . Retrieved Matter . | . . . . . . . . . Retrieved Components 9 | . 9 . . . . . . . Parts Scanalyzed 1 | . . . 1 . . . . . Part Schematics Acquired 1 | . . . 1 . . . . . Parts Damaged . | . . . . . . . . . Bothacking | -11 -10 -10 -9 -9 -9 -8 -8 -7 ------------ Run | Yrd Mat Min Mat Min Exi Min Mat Fac Used RIF Installer . | . . . . . . . . . Robots Hacked . | . . . . . . . . . Non-combat . | . . . . . . . . . Combat . | . . . . . . . . . Robot Hacks Applied . | . . . . . . . . . Relay Couplers Released . | . . . . . . . . . Fabnet Peak Effective % . | . . . . . . . . . Robots Rewired . | . . . . . . . . . Allies Hacked . | . . . . . . . . . Hacks Repelled . | . . . . . . . . . Allies | -11 -10 -10 -9 -9 -9 -8 -8 -7 -------- Run | Yrd Mat Min Mat Min Exi Min Mat Fac Total Allies 1 | . . . . 1 . . . . Largest Group 1 | . . . . 1 . . . . Highest-Rated Group 31 | . . . . 31 . . . . Highest-Rated Ally 31 | . . . . 31 . . . . Total Orders . | . . . . . . . . . Ally Attacks . | . . . . . . . . . Total Damage . | . . . . . . . . . Kills . | . . . . . . . . . Allies Corrupted . | . . . . . . . . . Allies Melted . | . . . . . . . . . Intel | -11 -10 -10 -9 -9 -9 -8 -8 -7 ------- Run | Yrd Mat Min Mat Min Exi Min Mat Fac Active Infowar (turns) 6248 | 47 1518 675 1903 807 734 296 268 . Seismic 6248 | 47 1518 675 1903 807 734 296 268 . Robot Analysis Total 4 | . . . 3 . . . 1 . Derelict Logs Recovered 3 | . . 2 . 1 . . . . Drone Launches . | . . . . . . . . . Drone Recoveries . | . . . . . . . . . Exploration | -11 -10 -10 -9 -9 -9 -8 -8 -7 ------------- Run | Yrd Mat Min Mat Min Exi Min Mat Fac Turns Passed 7572 | 89 1518 675 1996 807 734 296 1363 94 Spaces Moved 3934 | 46 723 372 883 478 452 183 727 70 Core . | . . . . . . . . . Treads 3191 | . 96 372 883 478 452 183 727 . Legs 673 | 46 627 . . . . . . . Wheels . | . . . . . . . . . Hover . | . . . . . . . . . Flight 70 | . . . . . . . . 70 Fastest Speed 120 | 120 120 160 160 160 160 160 160 127 Average Speed 158 | 120 157 160 160 160 160 160 160 127 Slowest Speed 190 | 120 190 160 160 160 160 160 160 127 Overloaded Moves . | . . . . . . . . . Propulsion Burnouts . | . . . . . . . . . Robots Hopped . | . . . . . . . . . Potential Cave-ins . | . . . . . . . . . Cave-ins Triggered . | . . . . . . . . . Exploration Rate (%) 58 | 3 92 86 83 94 63 41 60 4 Regions Visited 8 Branch Regions 4 Pre-discovered Areas 4 | . . 1 1 . 1 . 1 . Known Exits Taken 1 | . . . . 1 . . . . Unknown Exits Taken 7 | 1 1 1 1 . 1 1 1 . Scrap Searched 6 | . . 2 . 3 . 1 . . Spaces Dug . | . . . . . . . . . Terrain Destroyed 29 | . . 26 1 1 . . 1 . Melee . | . . . . . . . . . Projectile 3 | . . . 1 1 . . 1 . AOE 26 | . . 26 . . . . . . Terrain Rammed . | . . . . . . . . . Walls Destroyed . | . . . . . . . . . Machines Disabled . | . . . . . . . . . Actions | -11 -10 -10 -9 -9 -9 -8 -8 -7 --------- Run | Yrd Mat Min Mat Min Exi Min Mat Fac Total 4797 | 61 928 425 1282 503 466 186 869 77 Wait 367 | . 50 19 223 1 . . 74 . Move 3926 | 45 722 371 882 477 451 182 726 70 Hop . | . . . . . . . . . Pick Up 49 | 1 10 7 16 . 6 2 7 . Fast Attach 23 | 1 1 . 12 2 1 . 6 . Attach 12 | . 3 . 4 . . 1 1 3 Detach 6 | . 1 . . 2 . . 2 1 Swap 41 | . 11 6 12 2 1 1 8 . Drop 73 | 2 15 4 28 5 7 . 9 3 Fire 268 | 12 106 17 97 8 . . 28 . Melee . | . . . . . . . . . Ram . | . . . . . . . . . Kick 7 | . 7 . . . . . . . Crush 25 | . 2 1 8 6 . . 8 . Escape Stasis . | . . . . . . . . . Rewire . | . . . . . . . . . Trap . | . . . . . . . . . Miscellaneous . | . . . . . . . . . Route ------- -11/Scrapyard -10/Materials (discovered 6 exits: *Mat x3 / *Min x2 / [*Sub]) -10/Mines (discovered 2 exits: *Mat x2) -9/Materials (discovered 3 exits: *Mat x2 / [*Min]) -9/Mines (discovered 3 exits: *Mat x2 / *Exi) -9/Exiles -8/Mines -8/Materials (discovered 3 exits: *Fac / [*Sto x2]) -7/Factory History --------- Turn | Location | Event 2 | -11/Scrapyard | Discovered new exit (range 3) 90 | -11/Scrapyard | Entered Materials 215 | -10/Materials | Discovered new exit (range 15) 324 | -10/Materials | Build established: Mutant 372 | -10/Materials | Discovered new exit (range 12) 556 | -10/Materials | Discovered new exit (range 16) 602 | -10/Materials | Core integrity fell below 50% 1021 | -10/Materials | Discovered new exit (range 15) 1072 | -10/Materials | Discovered new exit (range 10) 1293 | -10/Materials | Discovered new exit (range 12) 1608 | -10/Materials | Entered Mines 1611 | -10/Mines | Met a Derelict shopkeep closing up shop 1849 | -10/Mines | Received a Rocket Launcher from a helpful Derelict 1852 | -10/Mines | Learned location of Zion (-6) 1987 | -10/Mines | Discovered new exit (range 14) 2121 | -10/Mines | Learned Materials emergency access door positions 2121 | -10/Mines | Discovered new exit (range 3) 2283 | -10/Mines | Entered Materials 2283 | -9/Materials | Evolved 2 slots: Propulsion x1, Utility x1 2570 | -9/Materials | Discovered new exit (range 15) 3129 | -9/Materials | Repaired Lgt. Treads+ 3182 | -9/Materials | Repaired Imp. Assault Rifle 3209 | -9/Materials | Repaired Lgt. Treads+ 3243 | -9/Materials | Repaired Imp. Light Cannon 3379 | -9/Materials | Discovered new exit (range 12) 4106 | -9/Materials | Discovered new exit (range 8) 4279 | -9/Materials | Entered Mines 4436 | -9/Mines | Discovered new exit (range 16) 4637 | -9/Mines | Discovered new exit (range 16) 4647 | -9/Mines | Received a Mining Laser from a helpful Derelict 4900 | -9/Mines | Identified exit to Exiles 5078 | -9/Mines | Deemed a non-threat by the Exiles lab entrance 5086 | -9/Mines | Entered Exiles 5125 | -9/Exiles | Met 8R-AWN 5152 | -9/Exiles | Met EX-HEX 5203 | -9/Exiles | Met EX-BIN 5221 | -9/Exiles | Aligned with FarCom system 5222 | -9/Exiles | Given EX-Vault access code 5338 | -9/Exiles | Opened EX-Vault 5352 | -9/Exiles | Found Flying Fortress v7 5355 | -9/Exiles | Found Longsword +1 5363 | -9/Exiles | Found Cloak of Protection 5404 | -9/Exiles | Warned to stay clear of 0b10 Research branches 5456 | -9/Exiles | Met EX-DEC 5804 | -9/Exiles | Discovered new exit (range 12) 5820 | -9/Exiles | Stole three prototypes: Longsword +1, Flying Fortress v7, Cloak of Protection 5820 | -9/Exiles | Entered Mines 5908 | -8/Mines | Discovered new exit (range 6) 6116 | -8/Mines | Entered Materials 6116 | -8/Materials | Evolved 2 slots: Propulsion x1, Utility x1 6162 | -8/Materials | Repaired Hacking Suite 6557 | -8/Materials | Discovered new exit (range 3) 6629 | -8/Materials | Met 7R-MNS 6961 | -8/Materials | Repaired Lgt. Armor Plating 7010 | -8/Materials | Discovered new exit (range 16) 7258 | -8/Materials | Discovered new exit (range 16) 7479 | -8/Materials | Entered Factory 7479 | -7/Factory | Evolved 2 slots: Propulsion x1, Weapon x1 7481 | -7/Factory | FarCom data flow suspended 7573 | -7/Factory | Self-destructed Last Messages --------------- Aluminum Leg (90%) >>Force(Tunnel) DISCOVERED[-7/Factory] 07422_ ALERT: Suspicious activity at Recycling Unit M001. Dispatching Investigation squad. 07423_ System corrupted: Matter fused (-9). 07478_ Acquired 39 matter. PARAMETERS=PROPULSION+1,WEAPON+1 LOCATION=UNKNOWN GOAL=ESCAPE 07479_ Receiving FarCom transmissions... 07481_ FARCOM_MSG: Not cool, anonymous tester bot. We've taken inventory and discovered your thievery. Let's see how you like having parts stolen! 07481_ FarCom data flow suspended. [Achievement: Morally Flexible] 07481_ Dropped Imp. Treads. 07514_ Connecting with Terminal... 07514_ Current location identified: Factory 07548_ K-01 Serf pushes Y-54 Guardian. Map ----- +----------------------------------------------------+ | ?????????????????????????????????????????????????? | | ?????????????????????????????????????????????????? | | ?????????????????????????????????????????????????? | | ??? ?????????????????? ???????????????????????? | | ??? ???????????????? T??????????????????????? | | ??? #??????????????? ??????????????????????? | | ??# ########??#????? ??????????????????????? | | ??# # """ """ #????# ??????????????????????? | | ??# # """ """ #????# ""?????? ??????????????? | | ??# # """ """ #????# """? #????????????? | | ??# # #????# """? #????????????? | | ??# + ] #????# #????????????? | | ??+ # ?????# """ #????????????? | | ??# # ! ???????# """ #????????????? | | ??# # ?????????# """ #????????????? | | ### ###+############ #####????????? | | # """ ????????? | | # """ ??????????? | | # == """ ""G""? ???????? | | # = " " ??????? | | # ??????? | | ####+#######+############## ??????? | | # #= # #?????? | | # """ """ # """ # #?????? | | # """ """ # """ + ==!#?????? | | # """ """ # """@# =!!#?????? | | # # ####### =!!#?????? | | ! # """ # """ #??????? ??????? | | # """ # """ #???????? """ ??????? | | # """ # """ #????????? ""?????????? | | # " " # #?????????? "??????????? | | # "T" # """ #??????????? ??????????? | | # """ # """ #??????????????????????? | | # # """ #??????????????????????? | | #################### #??????????????????????? | | ???????????????????#?? #??????????????????????? | | ??????????????????????#####??????????????????????? | | ?????????????????????????????????????????????????? | | ?????????????????????????????????????????????????? | | ?????????????????????????????????????????????????? | | ?????????????????????????????????????????????????? | | ?????????????????????????????????????????????????? | | ?????????????????????????????????????????????????? | | ?????????????????????????????????????????????????? | | ?????????????????????????????????????????????????? | | ?????????????????????????????????????????????????? | | | | | | | | | +----------------------------------------------------+ Best States ------------- Heat Dissipation 34 Energy Generation 14 Energy Capacity 265 Matter Stores 300 Matter Capacity 300 Sight Range 16 Terrain Scan Density 10 Armor Coverage 450 Core Shielding 20 Utility Shielding 66 Evasion (%) 55 Recoil Reduction 4 Item Schematics ----------------- Imp. Utility Shielding | -9/Materials | Scanalyzed Robot Schematics ------------------ None Fabricated ------------ Nothing Repaired ---------- Lgt. Treads | 4% | -9/Materials Imp. Assault Rifle | 35% | -9/Materials Lgt. Treads | 27% | -9/Materials Imp. Light Cannon | 54% | -9/Materials Hacking Suite | 20% | -8/Materials Lgt. Armor Plating | 74% | -8/Materials Studied --------- Lgt. Treads | -9/Materials | Hacked Lgt. Assault Rifle | -9/Materials | Hacked Assault Rifle | -9/Materials | Hacked Lgt. Ion Engine | -9/Materials | Hacked Alien Tech Used ----------------- None Achievements -------------- Morally Flexible Challenges ------------ None Game ------ Seed ArcSupersonicChainsaw Manual? 0 Play Time 01:31:35 Cumulative 27.4 hours Start 2026.02.26 @ 23:30:39 End 2026.02.28 @ 17:03:55 Sessions 7 Manual Loads 0 Difficulty Rogue Special Mode None Game No. 23 Rogue 23 Adventurer 0 Explorer 0 Win Type - Total 1 Types 1/0/0/0/0/0/0/0/0/0 Lore% 9 Gallery% 20 Achievement% 19 Wizard Run 0 Options --------- Layout 0 ASCII 0 Keyboard 1 Movement Arrows Keybinds 0 Fullscreen 1 Font 28/Terminus Map View 72x54 Zoom Use 0% Tactical HUD 1 Map Filters NONE Filters NONE Steam 1 RUN: 4898dc1e-a7ab-44d0-ab7e-32e63c93960b